[Event "Early-Titled-Tuesday-Blitz-June-18-2024"]
[Site "Chess.com"]
[Date "2024.06.18"]
[Round "9"]
[White "santosalberto1987"]
[Black "ThetNaung291"]
[Result "1-0"]
[WhiteElo "2593"]
[BlackElo "2444"]
[TimeControl "180+1"]
[EndTime "9:48:10 PDT"]
[Termination "santosalberto1987 won on time"]

1. e4 {[%clk 0:03:00.9]} 1... c5 {[%clk 0:02:58.1]} 2. Nf3 {[%clk 0:03:00.3]}
2... d6 {[%clk 0:02:57.7]} 3. Bb5+ {[%clk 0:02:59.9]} 3... Bd7 {[%clk
0:02:57.1]} 4. Bxd7+ {[%clk 0:02:59.8]} 4... Qxd7 {[%clk 0:02:56.5]} 5. c4
{[%clk 0:03:00.1]} 5... Nc6 {[%clk 0:02:55.3]} 6. Nc3 {[%clk 0:03:00.4]} 6... g6
{[%clk 0:02:53.1]} 7. d4 {[%clk 0:03:00.4]} 7... cxd4 {[%clk 0:02:52.6]} 8. Nxd4
{[%clk 0:03:01.3]} 8... Bg7 {[%clk 0:02:52.3]} 9. Be3 {[%clk 0:03:01.6]} 9...
Nf6 {[%clk 0:02:51.6]} 10. f3 {[%clk 0:03:01.9]} 10... O-O {[%clk 0:02:50.9]}
11. Rc1 {[%clk 0:03:01.3]} 11... Rfc8 {[%clk 0:02:49.3]} 12. b3 {[%clk
0:03:01.2]} 12... Qd8 {[%clk 0:02:39.2]} 13. O-O {[%clk 0:03:00.2]} 13... a6
{[%clk 0:02:36.8]} 14. Nd5 {[%clk 0:02:49.8]} 14... Nd7 {[%clk 0:02:31.1]} 15.
Qd2 {[%clk 0:02:38.6]} 15... Rab8 {[%clk 0:02:19.3]} 16. a4 {[%clk 0:02:36.4]}
16... Nc5 {[%clk 0:01:56.9]} 17. Rb1 {[%clk 0:02:34.5]} 17... b5 {[%clk
0:01:44.4]} 18. axb5 {[%clk 0:02:32.6]} 18... Nxd4 {[%clk 0:01:43.2]} 19. Bxd4
{[%clk 0:02:27.1]} 19... Bxd4+ {[%clk 0:01:36.3]} 20. Qxd4 {[%clk 0:02:28]}
20... axb5 {[%clk 0:01:36]} 21. cxb5 {[%clk 0:02:14.9]} 21... Rxb5 {[%clk
0:01:32.3]} 22. b4 {[%clk 0:02:14.4]} 22... Ne6 {[%clk 0:01:31.3]} 23. Qd3
{[%clk 0:02:11]} 23... Rcb8 {[%clk 0:01:27.8]} 24. Rfc1 {[%clk 0:02:08.2]} 24...
R5b7 {[%clk 0:01:13.1]} 25. Rc4 {[%clk 0:01:58.4]} 25... Nf8 {[%clk 0:01:09.2]}
26. Qc3 {[%clk 0:01:52.8]} 26... Nd7 {[%clk 0:01:05.5]} 27. Rc8 {[%clk
0:01:37.5]} 27... Rxc8 {[%clk 0:01:01]} 28. Qxc8 {[%clk 0:01:37.1]} 28... Qxc8
{[%clk 0:00:56.4]} 29. Nxe7+ {[%clk 0:01:36.9]} 29... Kf8 {[%clk 0:00:56.3]} 30.
Nxc8 {[%clk 0:01:37.8]} 30... d5 {[%clk 0:00:44]} 31. exd5 {[%clk 0:01:35.8]}
31... Nf6 {[%clk 0:00:43.1]} 32. d6 {[%clk 0:01:29.9]} 32... Ke8 {[%clk
0:00:41.5]} 33. b5 {[%clk 0:00:19.3]} 33... Kd7 {[%clk 0:00:38.4]} 34. Ne7
{[%clk 0:00:19.8]} 34... Kxd6 {[%clk 0:00:34.5]} 35. Nc6 {[%clk 0:00:19.9]}
35... Nd5 {[%clk 0:00:25.7]} 36. Na5 {[%clk 0:00:19.2]} 36... Ra7 {[%clk
0:00:20.5]} 37. b6 {[%clk 0:00:16.8]} 37... Nxb6 {[%clk 0:00:13.4]} 38. Rxb6+
{[%clk 0:00:16.4]} 38... Kc5 {[%clk 0:00:13.4]} 39. Rb7 {[%clk 0:00:12.2]} 39...
Rxa5 {[%clk 0:00:13]} 40. Rxf7 {[%clk 0:00:12.3]} 40... Kd6 {[%clk 0:00:05.8]}
41. Rxh7 {[%clk 0:00:12]} 41... Ke6 {[%clk 0:00:06.2]} 42. h4 {[%clk 0:00:11.6]}
42... Kf6 {[%clk 0:00:06.2]} 43. Kh2 {[%clk 0:00:11.9]} 43... Ra4 {[%clk
0:00:06.2]} 44. Kg3 {[%clk 0:00:11.6]} 44... Rb4 {[%clk 0:00:06.4]} 45. Ra7
{[%clk 0:00:10.5]} 45... Rc4 {[%clk 0:00:05.8]} 46. Ra6+ {[%clk 0:00:10.6]}
46... Kg7 {[%clk 0:00:05.8]} 47. f4 {[%clk 0:00:10.4]} 47... Rc2 {[%clk
0:00:05.2]} 48. Ra5 {[%clk 0:00:07.9]} 48... Kf6 {[%clk 0:00:05]} 49. Rg5 {[%clk
0:00:07.2]} 49... Rb2 {[%clk 0:00:04.4]} 50. Kh3 {[%clk 0:00:07.5]} 50... Ra2
{[%clk 0:00:03.9]} 51. g3 {[%clk 0:00:07.7]} 51... Ra1 {[%clk 0:00:03.3]} 52.
Kg4 {[%clk 0:00:07.9]} 52... Ra4 {[%clk 0:00:02.6]} 53. Rb5 {[%clk 0:00:07.7]}
53... Ra3 {[%clk 0:00:02]} 54. Rg5 {[%clk 0:00:05.7]} 54... Kf7 {[%clk
0:00:01.9]} 55. h5 {[%clk 0:00:05.3]} 55... gxh5+ {[%clk 0:00:01.9]} 56. Kxh5
{[%clk 0:00:06.2]} 56... Ra1 {[%clk 0:00:02]} 57. Kg4 {[%clk 0:00:06.4]} 57...
Kf6 {[%clk 0:00:02.1]} 58. Rb5 {[%clk 0:00:06.2]} 58... Ra2 {[%clk 0:00:02]} 59.
Rb6+ {[%clk 0:00:06.1]} 59... Kf7 {[%clk 0:00:02.1]} 60. Kg5 {[%clk 0:00:06.4]}
60... Ra3 {[%clk 0:00:02.2]} 61. g4 {[%clk 0:00:06.5]} 61... Ra5+ {[%clk
0:00:03.1]} 62. f5 {[%clk 0:00:06.6]} 62... Rc5 {[%clk 0:00:03.9]} 63. Rb7+
{[%clk 0:00:06.7]} 63... Ke8 {[%clk 0:00:04.8]} 64. Kg6 {[%clk 0:00:06.9]} 64...
Rc4 {[%clk 0:00:05.4]} 65. g5 {[%clk 0:00:07.1]} 1-0

[Event "Early-Titled-Tuesday-Blitz-June-18-2024"]
[Site "Chess.com"]
[Date "2024.06.18"]
[Round "9"]
[White "superchess02"]
[Black "kleinebeer98"]
[Result "1-0"]
[WhiteElo "2922"]
[BlackElo "2967"]
[TimeControl "180+1"]
[EndTime "9:48:11 PDT"]
[Termination "superchess02 won on time"]

1. b3 {[%clk 0:02:57.5]} 1... e5 {[%clk 0:02:59.7]} 2. Bb2 {[%clk 0:02:58.1]}
2... Nc6 {[%clk 0:03:00.5]} 3. g3 {[%clk 0:02:58.4]} 3... h5 {[%clk 0:02:59.3]}
4. Bg2 {[%clk 0:02:59.3]} 4... h4 {[%clk 0:02:59.5]} 5. c4 {[%clk 0:02:59.3]}
5... d6 {[%clk 0:02:44.4]} 6. Nc3 {[%clk 0:02:59.1]} 6... h3 {[%clk 0:02:41.8]}
7. Bf1 {[%clk 0:02:50.6]} 7... Nf6 {[%clk 0:02:32.7]} 8. a3 {[%clk 0:02:50.8]}
8... d5 {[%clk 0:02:32.1]} 9. cxd5 {[%clk 0:02:49.1]} 9... Nxd5 {[%clk 0:02:33]}
10. e4 {[%clk 0:02:49.8]} 10... Nf6 {[%clk 0:02:28]} 11. Bb5 {[%clk 0:02:41]}
11... Bd7 {[%clk 0:02:25.3]} 12. d3 {[%clk 0:02:21.3]} 12... a6 {[%clk
0:02:12.7]} 13. Bxc6 {[%clk 0:02:20]} 13... Bxc6 {[%clk 0:02:13.6]} 14. Qc2
{[%clk 0:02:16.3]} 14... Bd6 {[%clk 0:02:08.5]} 15. Nge2 {[%clk 0:02:10.9]}
15... Qe7 {[%clk 0:02:05]} 16. b4 {[%clk 0:02:05.2]} 16... a5 {[%clk 0:02:01.6]}
17. b5 {[%clk 0:02:04.8]} 17... Bd7 {[%clk 0:02:01.5]} 18. a4 {[%clk 0:02:03.5]}
18... O-O {[%clk 0:01:55.8]} 19. f3 {[%clk 0:01:59.2]} 19... c6 {[%clk 0:01:53]}
20. Qb3 {[%clk 0:01:45.5]} 20... Be6 {[%clk 0:01:51.9]} 21. Qc2 {[%clk
0:01:39.1]} 21... cxb5 {[%clk 0:01:51.7]} 22. Nxb5 {[%clk 0:01:39.4]} 22... Rac8
{[%clk 0:01:50.6]} 23. Qd2 {[%clk 0:01:39.2]} 23... Rfd8 {[%clk 0:01:41.2]} 24.
Nxd6 {[%clk 0:01:21.4]} 24... Qxd6 {[%clk 0:01:42.1]} 25. O-O {[%clk 0:01:21.6]}
25... Bc4 {[%clk 0:01:39.2]} 26. Nc1 {[%clk 0:01:07.7]} 26... Ba6 {[%clk
0:01:04]} 27. Qxa5 {[%clk 0:00:53.1]} 27... Rc2 {[%clk 0:00:57.7]} 28. Bxe5
{[%clk 0:00:45]} 28... Rg2+ {[%clk 0:00:44.6]} 29. Kh1 {[%clk 0:00:45.1]} 29...
Qe7 {[%clk 0:00:45.5]} 30. Ra2 {[%clk 0:00:17.7]} 30... Bxd3 {[%clk 0:00:45.6]}
31. Rd1 {[%clk 0:00:12.7]} 31... Rxa2 {[%clk 0:00:46.1]} 32. Nxa2 {[%clk
0:00:13.6]} 32... Nxe4 {[%clk 0:00:46.8]} 33. Kg1 {[%clk 0:00:08.9]} 33... Ng5
{[%clk 0:00:43.1]} 34. Kf2 {[%clk 0:00:09.1]} 34... f6 {[%clk 0:00:32.5]} 35.
Nc1 {[%clk 0:00:08.5]} 35... fxe5 {[%clk 0:00:27.9]} 36. Rxd3 {[%clk 0:00:08.4]}
36... Rc8 {[%clk 0:00:25.1]} 37. Ne2 {[%clk 0:00:08.3]} 37... e4 {[%clk
0:00:25.3]} 38. Re3 {[%clk 0:00:08.9]} 38... Nxf3 {[%clk 0:00:10.9]} 39. Qd5+
{[%clk 0:00:08.4]} 39... Qf7 {[%clk 0:00:06.7]} 40. Qxf7+ {[%clk 0:00:08.7]}
40... Kxf7 {[%clk 0:00:07.6]} 41. Rxe4 {[%clk 0:00:08.7]} 41... Nxh2 {[%clk
0:00:07.1]} 42. Rf4+ {[%clk 0:00:06]} 42... Kg8 {[%clk 0:00:05.9]} 43. Kg1
{[%clk 0:00:06.6]} 43... Rc2 {[%clk 0:00:04.9]} 44. Kxh2 {[%clk 0:00:06.8]}
44... Rxe2+ {[%clk 0:00:05.3]} 45. Kxh3 {[%clk 0:00:07.3]} 45... Ra2 {[%clk
0:00:05.8]} 46. Rb4 {[%clk 0:00:06.9]} 46... Kh7 {[%clk 0:00:06]} 47. Kg4 {[%clk
0:00:06.8]} 47... Kh6 {[%clk 0:00:05.9]} 48. Kf5 {[%clk 0:00:06.3]} 48... Rf2+
{[%clk 0:00:05.3]} 49. Ke6 {[%clk 0:00:06.5]} 49... b6 {[%clk 0:00:05.1]} 50.
Kd7 {[%clk 0:00:06.2]} 50... Rf3 {[%clk 0:00:01.7]} 51. Rxb6+ {[%clk 0:00:04.2]}
51... g6 {[%clk 0:00:02.4]} 52. g4 {[%clk 0:00:02.1]} 52... Rf4 {[%clk
0:00:02.5]} 53. a5 {[%clk 0:00:03]} 53... Rxg4 {[%clk 0:00:02.8]} 54. a6 {[%clk
0:00:03.9]} 54... Ra4 {[%clk 0:00:02.9]} 55. Kc7 {[%clk 0:00:04.3]} 55... Kh5
{[%clk 0:00:03.6]} 56. Kb7 {[%clk 0:00:05]} 56... g5 {[%clk 0:00:03.6]} 57. a7
{[%clk 0:00:05.8]} 57... g4 {[%clk 0:00:03.2]} 58. Ra6 {[%clk 0:00:06.1]} 58...
Rb4+ {[%clk 0:00:02.4]} 59. Kc6 {[%clk 0:00:05.3]} 59... Rc4+ {[%clk 0:00:02.6]}
60. Kd5 {[%clk 0:00:06.1]} 60... Rc8 {[%clk 0:00:02.9]} 61. a8=Q {[%clk
0:00:07]} 61... Rxa8 {[%clk 0:00:03.3]} 62. Rxa8 {[%clk 0:00:07.9]} 62... g3
{[%clk 0:00:04.2]} 63. Ke4 {[%clk 0:00:08.3]} 63... Kg4 {[%clk 0:00:04.4]} 64.
Rg8+ {[%clk 0:00:08.7]} 64... Kh3 {[%clk 0:00:02.9]} 65. Kf3 {[%clk 0:00:09.6]}
65... g2 {[%clk 0:00:02.6]} 66. Rxg2 {[%clk 0:00:09.8]} 1-0

[Event "Early-Titled-Tuesday-Blitz-June-18-2024"]
[Site "Chess.com"]
[Date "2024.06.18"]
[Round "9"]
[White "jguerramzllo"]
[Black "yaguigor"]
[Result "1-0"]
[WhiteElo "2677"]
[BlackElo "2632"]
[TimeControl "180+1"]
[EndTime "9:48:11 PDT"]
[Termination "jguerramzllo won on time"]

1. e4 {[%clk 0:02:53.7]} 1... c5 {[%clk 0:02:55.7]} 2. Nf3 {[%clk 0:02:53.3]}
2... Nc6 {[%clk 0:02:56.3]} 3. Bb5 {[%clk 0:02:52.2]} 3... g6 {[%clk 0:02:55.5]}
4. O-O {[%clk 0:02:51.8]} 4... Bg7 {[%clk 0:02:55]} 5. Re1 {[%clk 0:02:51.6]}
5... Nf6 {[%clk 0:02:54.5]} 6. c3 {[%clk 0:02:51.9]} 6... O-O {[%clk 0:02:54]}
7. h3 {[%clk 0:02:52.5]} 7... e5 {[%clk 0:02:45.5]} 8. d3 {[%clk 0:02:52]} 8...
d6 {[%clk 0:02:45.2]} 9. Nbd2 {[%clk 0:02:51.9]} 9... Bd7 {[%clk 0:02:38]} 10.
a3 {[%clk 0:02:44.3]} 10... a6 {[%clk 0:02:28.9]} 11. Bc4 {[%clk 0:02:43.6]}
11... b5 {[%clk 0:02:28]} 12. Ba2 {[%clk 0:02:43.5]} 12... a5 {[%clk 0:02:16.5]}
13. Nf1 {[%clk 0:02:40.8]} 13... a4 {[%clk 0:02:01.9]} 14. Ne3 {[%clk
0:02:39.3]} 14... Be6 {[%clk 0:01:57.8]} 15. Bd2 {[%clk 0:02:20.1]} 15... Bxa2
{[%clk 0:01:48.8]} 16. Rxa2 {[%clk 0:02:21]} 16... d5 {[%clk 0:01:44.1]} 17. Qc2
{[%clk 0:02:10]} 17... Rc8 {[%clk 0:01:38.5]} 18. Raa1 {[%clk 0:02:09.9]} 18...
Nd4 {[%clk 0:01:35]} 19. cxd4 {[%clk 0:02:04.7]} 19... cxd4 {[%clk 0:01:34.3]}
20. Qd1 {[%clk 0:02:04.8]} 20... dxe3 {[%clk 0:01:33.8]} 21. Rxe3 {[%clk
0:01:59.4]} 21... Bh6 {[%clk 0:01:21.7]} 22. Re2 {[%clk 0:01:46.9]} 22... Bxd2
{[%clk 0:01:21.2]} 23. Rxd2 {[%clk 0:01:47.1]} 23... Qd6 {[%clk 0:01:19.1]} 24.
Qe2 {[%clk 0:01:46]} 24... Rfe8 {[%clk 0:01:17.1]} 25. Rc2 {[%clk 0:01:38.8]}
25... Nd7 {[%clk 0:00:59]} 26. Rac1 {[%clk 0:01:38]} 26... Rc5 {[%clk
0:00:57.9]} 27. Rxc5 {[%clk 0:01:23]} 27... Nxc5 {[%clk 0:00:56.6]} 28. Rc2
{[%clk 0:01:12.2]} 28... Nb3 {[%clk 0:00:49.6]} 29. Rc3 {[%clk 0:01:01]} 29...
d4 {[%clk 0:00:46.4]} 30. Rc2 {[%clk 0:00:59.2]} 30... f6 {[%clk 0:00:45]} 31.
Nd2 {[%clk 0:00:54.4]} 31... Nc5 {[%clk 0:00:37.3]} 32. Nf3 {[%clk 0:00:44.8]}
32... Nb3 {[%clk 0:00:37]} 33. g3 {[%clk 0:00:44.1]} 33... Qd7 {[%clk
0:00:35.3]} 34. Kg2 {[%clk 0:00:43.7]} 34... Rc8 {[%clk 0:00:34.3]} 35. Nh2
{[%clk 0:00:38.3]} 35... h5 {[%clk 0:00:32]} 36. Nf3 {[%clk 0:00:37.2]} 36...
Kg7 {[%clk 0:00:31]} 37. Nh4 {[%clk 0:00:31.9]} 37... Na1 {[%clk 0:00:29.1]} 38.
Rxc8 {[%clk 0:00:30.8]} 38... Qxc8 {[%clk 0:00:30]} 39. Nf3 {[%clk 0:00:21.4]}
39... Qc1 {[%clk 0:00:27.6]} 40. Ne1 {[%clk 0:00:20.1]} 40... Kh7 {[%clk
0:00:19.8]} 41. Kf1 {[%clk 0:00:18.6]} 41... Nb3 {[%clk 0:00:18.3]} 42. Qc2
{[%clk 0:00:18.9]} 42... Qxc2 {[%clk 0:00:16.4]} 43. Nxc2 {[%clk 0:00:18.6]}
43... Kg7 {[%clk 0:00:17]} 44. Ke2 {[%clk 0:00:18.3]} 44... Kf7 {[%clk
0:00:17.2]} 45. Nb4 {[%clk 0:00:18.2]} 45... Ke6 {[%clk 0:00:16.8]} 46. f4
{[%clk 0:00:17.3]} 46... Kd6 {[%clk 0:00:16.5]} 47. f5 {[%clk 0:00:16.7]} 47...
g5 {[%clk 0:00:16.1]} 48. Nd5 {[%clk 0:00:15.5]} 48... Nc1+ {[%clk 0:00:14.7]}
49. Kd2 {[%clk 0:00:15.5]} 49... Nb3+ {[%clk 0:00:14.8]} 50. Kc2 {[%clk
0:00:15.9]} 50... h4 {[%clk 0:00:13.2]} 51. gxh4 {[%clk 0:00:14.2]} 51... gxh4
{[%clk 0:00:12.9]} 52. Nxf6 {[%clk 0:00:14.8]} 52... Ke7 {[%clk 0:00:12.3]} 53.
Nh7 {[%clk 0:00:12.2]} 53... Na1+ {[%clk 0:00:10.9]} 54. Kb1 {[%clk 0:00:11.9]}
54... Nb3 {[%clk 0:00:11.4]} 55. Kc2 {[%clk 0:00:11.3]} 55... Na1+ {[%clk
0:00:11.5]} 56. Kd1 {[%clk 0:00:11.3]} 56... Nb3 {[%clk 0:00:11.7]} 57. Ng5
{[%clk 0:00:11.4]} 57... Nc5 {[%clk 0:00:11.5]} 58. Ke2 {[%clk 0:00:10.2]} 58...
Kf6 {[%clk 0:00:08.9]} 59. Nf3 {[%clk 0:00:10.4]} 59... Na6 {[%clk 0:00:07.2]}
60. Nxh4 {[%clk 0:00:09.7]} 60... b4 {[%clk 0:00:08.1]} 61. axb4 {[%clk
0:00:05.7]} 61... Nxb4 {[%clk 0:00:07.6]} 62. Nf3 {[%clk 0:00:06.1]} 62... Nc2
{[%clk 0:00:04.2]} 63. Nh2 {[%clk 0:00:05]} 63... Na1 {[%clk 0:00:02.1]} 64.
Ng4+ {[%clk 0:00:04.8]} 64... Kg5 {[%clk 0:00:02.5]} 65. Nxe5 {[%clk 0:00:05]}
65... Nb3 {[%clk 0:00:03]} 66. Nc6 {[%clk 0:00:04.7]} 1-0

[Event "Early-Titled-Tuesday-Blitz-June-18-2024"]
[Site "Chess.com"]
[Date "2024.06.18"]
[Round "9"]
[White "Senn71"]
[Black "CrimeFightingSpider07"]
[Result "1/2-1/2"]
[WhiteElo "2363"]
[BlackElo "2535"]
[TimeControl "180+1"]
[EndTime "9:48:15 PDT"]
[Termination "Game drawn by agreement"]

1. e4 {[%clk 0:02:46.6]} 1... e5 {[%clk 0:02:58.9]} 2. Nf3 {[%clk 0:02:45]} 2...
Nf6 {[%clk 0:02:59]} 3. Nc3 {[%clk 0:02:44.2]} 3... Nc6 {[%clk 0:02:58.7]} 4.
Bb5 {[%clk 0:02:43.4]} 4... Nd4 {[%clk 0:02:54.4]} 5. Nxd4 {[%clk 0:02:41.1]}
5... exd4 {[%clk 0:02:55.3]} 6. e5 {[%clk 0:02:41.5]} 6... dxc3 {[%clk 0:02:54]}
7. exf6 {[%clk 0:02:39.2]} 7... Qxf6 {[%clk 0:02:52]} 8. dxc3 {[%clk 0:02:37.8]}
8... c6 {[%clk 0:02:51.8]} 9. Bd3 {[%clk 0:02:35.7]} 9... d5 {[%clk 0:02:50.6]}
10. O-O {[%clk 0:02:34.3]} 10... Bd6 {[%clk 0:02:51]} 11. Qh5 {[%clk 0:02:28.5]}
11... h6 {[%clk 0:02:44]} 12. Re1+ {[%clk 0:02:25.2]} 12... Be6 {[%clk
0:02:43.5]} 13. Bg5 {[%clk 0:02:08.7]} 13... Qxg5 {[%clk 0:02:15.7]} 14. Rxe6+
{[%clk 0:02:06.9]} 14... Be7 {[%clk 0:02:16.3]} 15. Qxg5 {[%clk 0:01:55.7]}
15... hxg5 {[%clk 0:02:17.2]} 16. Re3 {[%clk 0:01:43.8]} 16... Kd7 {[%clk
0:02:13.5]} 17. Rae1 {[%clk 0:01:44]} 17... Bc5 {[%clk 0:02:11.3]} 18. R3e2
{[%clk 0:01:43.7]} 18... Rae8 {[%clk 0:02:10]} 19. Rxe8 {[%clk 0:01:41.9]} 19...
Rxe8 {[%clk 0:02:10.9]} 20. Rxe8 {[%clk 0:01:41.2]} 20... Kxe8 {[%clk
0:02:11.8]} 21. Kf1 {[%clk 0:01:41.4]} 21... Ke7 {[%clk 0:02:11.4]} 22. Ke2
{[%clk 0:01:41.7]} 22... Kd6 {[%clk 0:02:11.5]} 23. g3 {[%clk 0:01:33.4]} 23...
Ke5 {[%clk 0:02:10.9]} 24. f3 {[%clk 0:01:33.2]} 24... f6 {[%clk 0:02:10.1]} 25.
Bg6 {[%clk 0:01:31.3]} 25... Bg1 {[%clk 0:02:08.4]} 26. h3 {[%clk 0:01:24.4]}
26... b5 {[%clk 0:02:04.2]} 27. Be8 {[%clk 0:01:22.6]} 27... Kd6 {[%clk
0:02:03.8]} 28. a3 {[%clk 0:01:15.1]} 28... a6 {[%clk 0:01:54]} 29. h4 {[%clk
0:01:11]} 29... gxh4 {[%clk 0:01:52.6]} 30. gxh4 {[%clk 0:01:11.9]} 30... c5
{[%clk 0:01:52.4]} 31. h5 {[%clk 0:01:11]} 31... Ke5 {[%clk 0:01:49.5]} 32. Bd7
{[%clk 0:01:08]} 32... d4 {[%clk 0:01:49]} 33. cxd4+ {[%clk 0:01:06.2]} 33...
Bxd4 {[%clk 0:01:49.7]} 34. c3 {[%clk 0:01:04.8]} 34... Bg1 {[%clk 0:01:50]} 35.
Bc8 {[%clk 0:01:04.6]} 35... a5 {[%clk 0:01:49.6]} 36. Bd7 {[%clk 0:01:04.5]}
36... b4 {[%clk 0:01:49.3]} 37. axb4 {[%clk 0:01:01.9]} 37... axb4 {[%clk
0:01:49.5]} 38. cxb4 {[%clk 0:01:02]} 38... cxb4 {[%clk 0:01:50.1]} 39. Be8
{[%clk 0:00:54.8]} 39... Kd4 {[%clk 0:01:38.5]} 40. Bf7 {[%clk 0:00:49.5]} 40...
Be3 {[%clk 0:01:36.3]} 41. Bg8 {[%clk 0:00:48.3]} 41... Bh6 {[%clk 0:01:35.4]}
42. Bf7 {[%clk 0:00:47.6]} 42... Ke5 {[%clk 0:01:34.6]} 43. Bg8 {[%clk
0:00:46.1]} 43... Kf5 {[%clk 0:01:34.8]} 44. Bf7 {[%clk 0:00:45.6]} 44... Kg5
{[%clk 0:01:35.4]} 45. Kd3 {[%clk 0:00:42.2]} 45... Kh4 {[%clk 0:01:34.8]} 46.
Be8 {[%clk 0:00:35.7]} 46... Kg3 {[%clk 0:01:33.7]} 47. Bc6 {[%clk 0:00:34.8]}
47... Kf2 {[%clk 0:01:32.9]} 48. Bd5 {[%clk 0:00:33.2]} 48... Ke1 {[%clk
0:01:31.9]} 49. Kc4 {[%clk 0:00:27.7]} 49... Bd2 {[%clk 0:01:30.6]} 50. Kd3
{[%clk 0:00:26.3]} 50... Kd1 {[%clk 0:01:30.1]} 51. b3 {[%clk 0:00:26.4]} 51...
Kc1 {[%clk 0:01:29.9]} 52. Ke4 {[%clk 0:00:26.9]} 52... Kc2 {[%clk 0:01:25.7]}
53. Kf5 {[%clk 0:00:26.8]} 53... Bh6 {[%clk 0:01:25.7]} 54. Ke4 {[%clk
0:00:25.8]} 54... Kc3 {[%clk 0:01:25.9]} 55. Be6 {[%clk 0:00:25.8]} 55... Kd2
{[%clk 0:01:25.2]} 56. Bd5 {[%clk 0:00:25.8]} 56... Ke2 {[%clk 0:01:25.5]} 57.
Be6 {[%clk 0:00:24.7]} 57... Kf2 {[%clk 0:01:26.2]} 58. Bd5 {[%clk 0:00:24.8]}
58... Kg3 {[%clk 0:01:26.9]} 59. Be6 {[%clk 0:00:24.9]} 59... Kh4 {[%clk
0:01:27.5]} 60. Bf7 {[%clk 0:00:25.2]} 60... Kg5 {[%clk 0:01:28.1]} 61. Be8
{[%clk 0:00:22.8]} 61... Kh4 {[%clk 0:01:25]} 62. Bf7 {[%clk 0:00:21.3]} 62...
Bc1 {[%clk 0:01:25.4]} 63. Be8 {[%clk 0:00:21.2]} 63... Kg5 {[%clk 0:01:25.5]}
64. Bf7 {[%clk 0:00:21.4]} 64... f5+ {[%clk 0:01:26]} 65. Kd3 {[%clk 0:00:20.5]}
65... Kf4 {[%clk 0:01:25.4]} 66. Ke2 {[%clk 0:00:20.6]} 66... Ke5 {[%clk
0:01:22.6]} 67. Bg6 {[%clk 0:00:19.9]} 67... Bh6 {[%clk 0:01:22.9]} 68. Bf7
{[%clk 0:00:19.4]} 68... Kf6 {[%clk 0:01:22.8]} 69. Be8 {[%clk 0:00:19.1]} 69...
Ke7 {[%clk 0:01:22.5]} 70. Bg6 {[%clk 0:00:18.1]} 70... Ke6 {[%clk 0:01:23.2]}
71. Kd3 {[%clk 0:00:17.9]} 71... Ke5 {[%clk 0:01:23.3]} 72. Ke2 {[%clk
0:00:16.6]} 72... Kf4 {[%clk 0:01:22.7]} 73. Bf7 {[%clk 0:00:16.5]} 73... Kg5
{[%clk 0:01:22.2]} 74. Be8 {[%clk 0:00:16.5]} 74... Kf6 {[%clk 0:01:22.7]} 75.
Kd3 {[%clk 0:00:15.8]} 75... Bf4 {[%clk 0:01:22.7]} 76. Kc4 {[%clk 0:00:15.4]}
76... Bd2 {[%clk 0:01:22.8]} 77. Kd3 {[%clk 0:00:16]} 77... Bc3 {[%clk
0:01:21.9]} 78. Ke3 {[%clk 0:00:15.2]} 78... Ke5 {[%clk 0:01:21.6]} 79. f4+
{[%clk 0:00:15.2]} 79... Kf6 {[%clk 0:01:21.8]} 80. Bg6 {[%clk 0:00:14]} 80...
Bb2 {[%clk 0:01:19.5]} 81. Kf3 {[%clk 0:00:14.1]} 81... Bc1 {[%clk 0:01:19.7]}
82. Be8 {[%clk 0:00:14.6]} 82... Ke6 {[%clk 0:01:19]} 83. Bg6 {[%clk 0:00:14.2]}
83... Bb2 {[%clk 0:01:15.8]} 84. Bh7 {[%clk 0:00:14.1]} 84... Bf6 {[%clk
0:01:15.6]} 85. Bg6 {[%clk 0:00:14.5]} 85... Be7 {[%clk 0:01:15.8]} 86. Bh7
{[%clk 0:00:15.1]} 86... Kf6 {[%clk 0:01:11]} 87. Bg6 {[%clk 0:00:15.5]} 87...
Bd6 {[%clk 0:01:11.6]} 88. Bh7 {[%clk 0:00:15.8]} 88... g5 {[%clk 0:01:12.2]}
89. hxg6 {[%clk 0:00:13.3]} 89... Kg7 {[%clk 0:01:10.6]} 90. Ke3 {[%clk
0:00:12.4]} 90... Bc5+ {[%clk 0:01:08.7]} 91. Kf3 {[%clk 0:00:12.7]} 91... Bd6
{[%clk 0:01:08.9]} 92. Ke3 {[%clk 0:00:12.9]} 92... Bc5+ {[%clk 0:01:09.6]} 93.
Kf3 {[%clk 0:00:13.4]} 93... Kh6 {[%clk 0:01:09.1]} 94. Bg8 {[%clk 0:00:11]}
94... Kg7 {[%clk 0:01:06.6]} 95. Be6 {[%clk 0:00:11.5]} 95... Kxg6 {[%clk
0:01:06.4]} 96. Bd7 {[%clk 0:00:11.5]} 96... Kf6 {[%clk 0:01:06.9]} 97. Bc8
{[%clk 0:00:11.8]} 97... Bd6 {[%clk 0:01:07.5]} 98. Bd7 {[%clk 0:00:11.9]} 98...
Bc7 {[%clk 0:01:01.1]} 1/2-1/2